bitfinex-derivatives/quotes_BTCF0:USTF0_20251208
["timestamp","ask_amount","ask_price","bid_price","bid_amount"]
[1765152938097,0.06293,90157.0,90156.0,0.00516636]
[1765152938294,0.06293,90157.0,90156.0,0.06186636]
[1765152939199,0.06293,90157.0,90156.0,0.06286636]
[1765152939396,0.06393,90157.0,90156.0,0.06286636]
[1765152940097,0.05793,90157.0,90156.0,0.06286636]
[1765152940302,0.06293,90157.0,90156.0,0.06286636]
[1765152940899,0.05793,90157.0,90156.0,0.06286636]
[1765152941203,0.05893,90157.0,90156.0,0.06286636]
[1765152941809,0.05993,90157.0,90156.0,0.07586636]
[1765152942107,0.003,90157.0,90156.0,0.07586636]
[1765152942313,0.001,90157.0,90156.0,0.05786636]
[1765152942516,0.003,90157.0,90156.0,0.07486636]
[1765152944415,0.005,90157.0,90156.0,0.09186636]
[1765152945013,0.005,90157.0,90156.0,0.09086636]
[1765152945219,0.005,90157.0,90156.0,0.47086636]
[1765152945520,0.004,90157.0,90156.0,0.46986636]
[1765152945820,0.005,90157.0,90156.0,0.47086636]
[1765152948317,0.001,90157.0,90156.0,0.43786636]
[1765152948511,0.005,90157.0,90156.0,0.47186636]
[1765152948911,0.001,90157.0,90156.0,0.43786636]
[1765152949121,0.005,90157.0,90156.0,0.47086636]
[1765152949715,0.00027727,90166.0,90165.0,0.0657598]
[1765152951213,0.00327727,90166.0,90165.0,0.0947598]
[1765152951718,0.00027727,90166.0,90165.0,0.0657598]
[1765152951919,0.00427727,90166.0,90165.0,0.0977598]
[1765152952920,0.03350727,90166.0,90165.0,0.0977598]
[1765152953515,0.03350727,90166.0,90165.0,0.0987598]
[1765152953719,0.03350727,90166.0,90165.0,0.0687598]
[1765152953919,0.03350727,90166.0,90165.0,0.1027598]
[1765152954419,0.03050727,90166.0,90165.0,0.0687598]
[1765152954617,0.06161727,90166.0,90165.0,0.1027598]
[1765152955012,0.05861727,90166.0,90165.0,0.0677598]
[1765152955214,0.06161727,90166.0,90165.0,0.1017598]
[1765152955618,0.06161727,90166.0,90165.0,0.1007598]
[1765152956423,0.06061727,90166.0,90165.0,0.0987598]
[1765152956623,0.06161727,90166.0,90165.0,0.1007598]
[1765152956825,0.03350727,90166.0,90165.0,0.1007598]
[1765152957418,0.00427727,90166.0,90165.0,0.5307598]
[1765152957723,0.00127727,90166.0,90165.0,0.2107598]
[1765152957918,0.00427727,90166.0,90165.0,0.2087598]
[1765152958123,0.00427727,90166.0,90165.0,0.2107598]
[1765152958324,0.06161727,90166.0,90165.0,0.06473115]
[1765152958522,0.06161727,90166.0,90165.0,0.035]
[1765152959925,0.06261727,90166.0,90165.0,0.037]
[1765152960629,0.05961727,90166.0,90165.0,0.004]
[1765152961032,0.05913,90157.0,90156.0,0.00016636]
[1765152961532,0.05913,90157.0,90156.0,0.02788636]
[1765152961731,0.0702208,90157.0,90156.0,0.05512636]
[1765152962529,0.0702208,90157.0,90156.0,0.00016636]
[1765152962832,0.0752208,90157.0,90156.0,0.00016636]
[1765152963438,0.0762208,90157.0,90156.0,0.00616636]
[1765152963635,0.0762208,90157.0,90156.0,0.06112636]
[1765152964023,0.0762208,90157.0,90156.0,0.00616636]
[1765152964223,0.0702224,90144.0,90143.0,0.08469115]
[1765152964426,0.01473,90153.0,90134.0,0.02772]
[1765152964427,0.05913,90135.0,90134.0,0.02772]
[1765152964832,0.05913,90130.0,90129.0,0.08469115]
[1765152965027,0.05913,90130.0,90129.0,0.05496]
[1765152966320,0.08048942,90139.0,90133.0,0.0110937]
[1765152966524,0.08048942,90139.0,90125.0,0.01796]
[1765152966525,0.00016636,90139.0,90138.0,0.05496]
[1765152966727,0.01125936,90139.0,90138.0,0.05496]
[1765152966925,0.05913,90135.0,90134.0,0.017]
[1765152967225,0.05913,90129.0,90128.0,0.05496]
[1765152967427,0.0110944,90128.0,90124.0,0.02973115]
[1765152967628,0.05913,90125.0,90124.0,0.02772]
[1765152967934,0.0110944,90128.0,90114.0,0.02973115]
[1765152967935,0.05913,90121.0,90114.0,0.02973115]
[1765152968226,0.05913,90121.0,90108.0,0.0110968]
[1765152968627,0.05913,90121.0,90111.0,0.0110964]
[1765152970027,0.06213,90121.0,90120.0,0.02816636]
[1765152970730,0.06313,90121.0,90120.0,0.03016636]
[1765152971129,0.06313,90121.0,90120.0,0.05788636]
[1765152973840,0.06313,90121.0,90120.0,0.03016636]
[1765152974722,0.06313,90121.0,90120.0,0.08708636]
[1765152975038,0.06313,90121.0,90120.0,0.05927636]
[1765152975332,0.06313,90121.0,90120.0,0.08708636]
[1765152976540,0.06313,90121.0,90120.0,0.03016636]
[1765152978833,0.06313,90121.0,90120.0,0.08708636]
[1765152982438,0.004,90121.0,90120.0,0.08708636]
[1765152982834,0.06125,90121.0,90120.0,0.08708636]
[1765152983037,0.06125,90121.0,90120.0,0.03016636]
[1765152984237,0.004,90121.0,90120.0,0.08708636]
[1765152985947,0.06125,90121.0,90120.0,0.08708636]
[1765152986339,0.06125,90121.0,90120.0,0.03016636]
[1765152986845,0.06125,90121.0,90120.0,0.05927636]
[1765152987249,0.06125,90121.0,90120.0,0.08708636]
[1765152987743,0.06125,90121.0,90120.0,0.10449636]
[1765152988441,0.06125,90121.0,90120.0,0.08708636]
[1765152989539,0.004,90121.0,90120.0,0.11559176]
[1765152989929,0.004,90121.0,90120.0,0.10449636]
[1765152989930,0.06125,90121.0,90120.0,0.10449636]
[1765152990135,0.06125,90121.0,90120.0,0.08708636]
[1765152990433,0.06125,90121.0,90120.0,0.03016636]
[1765152996344,0.0683472,90105.0,90104.0,0.05692]
[1765152996548,0.0683481,90098.0,90090.0,0.03976968]
[1765152996750,0.0286,90087.0,90086.0,0.05719751]
[1765152996938,0.0396978,90100.0,90096.0,0.01741]
[1765152997248,0.0396978,90100.0,90099.0,0.05692]
[1765152997752,0.0110973,90105.0,90104.0,0.07433]
[1765152998248,0.06851326,90109.0,90108.0,0.05692]
[1765152999540,0.01526326,90109.0,90108.0,0.07392]
[1765152999851,0.07351326,90109.0,90108.0,0.07392]
[1765153003050,0.07351326,90109.0,90108.0,0.017]
[1765153003836,0.07351326,90109.0,90108.0,0.07384]
[1765153007652,0.01626326,90109.0,90108.0,0.07384]
[1765153008654,0.00516646,90109.0,90108.0,0.07384]
[1765153015250,0.03458646,90109.0,90108.0,0.07384]
[1765153015649,0.00516646,90109.0,90108.0,0.07384]
[1765153018056,0.00516646,90109.0,90108.0,0.0849369]
[1765153021459,0.05951983,90127.0,90126.0,0.05814]
[1765153021664,0.05951983,90130.0,90129.0,0.0692343]
[1765153021848,0.05951983,90137.0,90136.0,0.05814]
[1765153022053,0.05951983,90141.0,90140.0,0.05814]
[1765153022259,0.05953,90141.0,90140.0,0.05814]
[1765153023452,0.06853,90141.0,90140.0,0.05814]
[1765153023657,0.009,90141.0,90140.0,0.05814]
[1765153024659,0.043,90141.0,90140.0,0.05914]
[1765153025761,0.013,90141.0,90140.0,0.06614]
[1765153026256,0.013,90141.0,90140.0,0.06814]
[1765153026257,0.005,90141.0,90140.0,0.06814]
[1765153027364,0.005,90141.0,90140.0,0.06714]
[1765153027760,0.001,90141.0,90140.0,0.06014]
[1765153028064,0.005,90141.0,90140.0,0.06714]
[1765153028660,0.005,90141.0,90140.0,0.06814]
[1765153029361,0.004,90141.0,90140.0,0.06514]
[1765153029557,0.005,90141.0,90140.0,0.06814]
[1765153030259,0.06453,90141.0,90140.0,0.06814]
[1765153033864,0.06453,90141.0,90140.0,0.01]
[1765153034163,0.05842,90132.0,90131.0,0.00016646]
[1765153034364,0.05842,90132.0,90131.0,0.05621646]
[1765153034365,0.0695139,90132.0,90131.0,0.05621646]
[1765153034762,0.0842439,90132.0,90131.0,0.00016646]
[1765153035357,0.0852439,90132.0,90131.0,0.00216646]
[1765153036560,0.0892439,90132.0,90131.0,0.00416646]
[1765153037067,0.0695155,90119.0,90118.0,0.07136]
[1765153037458,0.0409351,90123.0,90122.0,0.05605]
[1765153037859,0.0695151,90123.0,90122.0,0.05605]
[1765153038661,0.0765151,90123.0,90122.0,0.05605]
[1765153039663,0.1055151,90123.0,90122.0,0.05605]
[1765153040679,0.0765151,90123.0,90122.0,0.05605]
[1765153040879,0.1075151,90123.0,90122.0,0.05605]
[1765153041275,0.0765151,90123.0,90122.0,0.05605]
[1765153041476,0.1065151,90123.0,90122.0,0.05605]
[1765153043394,0.037,90123.0,90122.0,0.0671451]
[1765153043696,0.037,90123.0,90122.0,0.05605]
[1765153045993,0.037,90123.0,90122.0,0.46605]
[1765153046299,0.037,90123.0,90122.0,0.05605]
[1765153047796,0.037,90123.0,90122.0,0.48605]
[1765153047994,0.00016646,90132.0,90131.0,0.05605]
[1765153048195,0.00016646,90132.0,90131.0,0.067144]
[1765153048598,0.00016646,90132.0,90131.0,0.487144]
[1765153049104,0.0695123,90146.0,90145.0,0.05605]
[1765153049288,0.0874523,90146.0,90145.0,0.05605]
[1765153049598,0.05842,90135.0,90134.0,0.0671436]
[1765153050092,0.02984,90135.0,90134.0,0.0671436]
[1765153050293,0.0110928,90142.0,90140.0,0.0110929]
[1765153050494,0.00016646,90144.0,90143.0,0.05605]
[1765153051398,0.03000646,90144.0,90143.0,0.05605]
[1765153051588,0.03000646,90144.0,90143.0,0.05705]
[1765153051589,0.06558646,90144.0,90143.0,0.05705]
[1765153052695,0.03700646,90144.0,90143.0,0.05905]
[1765153052894,0.07458646,90144.0,90143.0,0.05905]
[1765153053796,0.04600646,90144.0,90143.0,0.05905]
[1765153055098,0.01616646,90144.0,90143.0,0.05905]
[1765153055298,0.07458646,90144.0,90143.0,0.05905]
[1765153055702,0.04600646,90144.0,90143.0,0.05905]
[1765153056202,0.01616646,90144.0,90143.0,0.05905]
[1765153057098,0.04600646,90144.0,90143.0,0.05905]
[1765153057305,0.03900646,90144.0,90143.0,0.05805]
[1765153057501,0.04000646,90144.0,90143.0,0.06205]
[1765153057896,0.08652646,90144.0,90143.0,0.06205]
[1765153058503,0.08152646,90144.0,90143.0,0.09305]
[1765153059003,0.08052646,90144.0,90143.0,0.07505]
[1765153059204,0.06258646,90144.0,90143.0,0.07505]
[1765153059506,0.05958646,90144.0,90143.0,0.06005]
[1765153059803,0.05958646,90144.0,90143.0,0.05805]
[1765153060102,0.06358646,90144.0,90143.0,0.05705]
[1765153060303,0.06458646,90144.0,90143.0,0.05905]
[1765153060503,0.00616646,90144.0,90143.0,0.05905]
[1765153060801,0.00216646,90144.0,90143.0,0.05905]
[1765153061399,0.00216646,90144.0,90143.0,0.0701425]
[1765153061599,0.00316646,90144.0,90143.0,0.0821425]
[1765153062101,0.00016646,90144.0,90143.0,0.0671425]
[1765153062304,0.00016646,90144.0,90143.0,0.0971425]
[1765153062305,0.00516646,90144.0,90143.0,0.0971425]
[1765153062704,0.00116646,90144.0,90143.0,0.0681425]
[1765153062900,0.00416646,90144.0,90143.0,0.0961425]
[1765153063100,0.00516646,90144.0,90143.0,0.1001425]
[1765153063808,0.00027727,90166.0,90165.0,0.05923]
[1765153064008,0.00027727,90166.0,90165.0,0.28923]
[1765153064405,0.04924333,90180.0,90179.0,0.05923]
[1765153064406,0.066228,90180.0,90179.0,0.05923]
[1765153065705,0.072228,90180.0,90179.0,0.06023]
[1765153065902,0.06114,90180.0,90179.0,0.06023]
[1765153066301,0.06814,90180.0,90179.0,0.06123]
[1765153066903,0.013,90180.0,90179.0,0.06123]
[1765153067214,0.04076,90180.0,90179.0,0.06123]
[1765153067810,0.013,90180.0,90179.0,0.06123]
[1765153076511,0.013,90180.0,90179.0,0.47123]
[1765153077408,0.00016636,90189.0,90188.0,0.070317]
[1765153077610,0.05541714,90206.0,90205.0,0.05923]
[1765153078813,0.05741714,90206.0,90205.0,0.07423]
[1765153079208,0.05741714,90206.0,90205.0,0.015]
[1765153080322,0.05741714,90206.0,90197.0,0.0110858]
[1765153080323,0.05514,90198.0,90197.0,0.0703158]
[1765153080725,0.05514,90198.0,90196.0,0.07398677]
[1765153080726,0.06850204,90206.0,90205.0,0.05923]
[1765153081016,0.06750204,90206.0,90205.0,0.06423]
[1765153081226,0.07150204,90206.0,90205.0,0.006]
[1765153081522,0.0662259,90197.0,90196.0,0.00016636]
[1765153082514,0.0110882,90178.0,90177.0,0.05923]
[1765153082719,0.0662282,90178.0,90177.0,0.02933]
[1765153083120,0.0662282,90178.0,90177.0,0.05923]
[1765153083821,0.0682282,90178.0,90177.0,0.07823]
[1765153084519,0.0722282,90178.0,90177.0,0.07923]
[1765153084916,0.0722282,90178.0,90177.0,0.06823]
[1765153084917,0.0712282,90178.0,90177.0,0.06823]
[1765153085121,0.06014,90178.0,90177.0,0.06823]
[1765153086817,0.05714,90178.0,90177.0,0.05923]
[1765153087028,0.05814,90178.0,90177.0,0.06723]
[1765153087726,0.05614,90178.0,90177.0,0.06723]
[1765153087918,0.05814,90178.0,90177.0,0.05923]
[1765153088117,0.05814,90178.0,90177.0,0.06723]
[1765153088723,0.05814,90178.0,90177.0,0.0783184]
[1765153089428,0.002,90178.0,90177.0,0.0703184]
[1765153089624,0.001,90178.0,90177.0,0.0783184]
[1765153089818,0.005,90178.0,90177.0,0.5093184]
[1765153090020,0.05915,90178.0,90177.0,0.03033]
[1765153090225,0.05915,90178.0,90177.0,0.01]
[1765153090226,0.06015,90178.0,90177.0,0.01]
[1765153090435,0.05615,90178.0,90177.0,0.009]
[1765153090630,0.05615,90178.0,90177.0,0.002]
[1765153090924,0.06015,90178.0,90177.0,0.039]
[1765153091326,0.06215,90178.0,90177.0,0.038]
[1765153091834,0.06215,90178.0,90177.0,0.09634]
[1765153092226,0.05815,90178.0,90177.0,0.02992]
[1765153092532,0.05915,90178.0,90177.0,0.03892]
[1765153092728,0.05915,90178.0,90177.0,0.06834]
[1765153093030,0.05615,90178.0,90177.0,0.06534]
[1765153093234,0.06015,90178.0,90177.0,0.06634]
[1765153093935,0.05915,90178.0,90177.0,0.05934]
[1765153094133,0.06015,90178.0,90177.0,0.06734]
[1765153095231,0.005,90178.0,90177.0,0.0784284]
[1765153095532,0.05848,90178.0,90177.0,0.0784284]
[1765153095731,0.05548,90178.0,90177.0,0.0774284]
[1765153096036,0.05948,90178.0,90177.0,0.0784284]
[1765153096329,0.005,90178.0,90177.0,0.4584284]
[1765153096532,0.005,90178.0,90177.0,0.1584284]
[1765153096734,0.005,90178.0,90177.0,0.1594284]
[1765153096935,0.005,90178.0,90177.0,0.0794284]
[1765153097130,0.02847,90178.0,90177.0,0.0804284]
[1765153097332,0.05548,90178.0,90177.0,0.06934]
[1765153098535,0.05448,90178.0,90177.0,0.06034]
[1765153098839,0.05748,90178.0,90177.0,0.09334]
[1765153099023,0.05848,90178.0,90177.0,0.10034]
[1765153099227,0.05648,90178.0,90177.0,0.07434]
[1765153099636,0.05548,90178.0,90177.0,0.06734]
[1765153099835,0.05948,90178.0,90177.0,0.06734]
[1765153100433,0.05548,90178.0,90177.0,0.06634]
[1765153100632,0.05848,90178.0,90177.0,0.06734]
[1765153101238,0.05848,90178.0,90177.0,0.05934]
[1765153101538,0.05848,90178.0,90177.0,0.06834]
[1765153101932,0.05748,90178.0,90177.0,0.05934]
[1765153102131,0.05948,90178.0,90177.0,0.06734]
[1765153105837,0.05948,90178.0,90177.0,0.03792]
[1765153106150,0.05948,90178.0,90177.0,0.009]
[1765153106940,0.05948,90178.0,90177.0,0.06734]
[1765153107141,0.005,90178.0,90177.0,0.06734]
[1765153107943,0.05948,90178.0,90177.0,0.06734]
[1765153108136,0.0705682,90178.0,90177.0,0.009]
[1765153109844,0.0705682,90178.0,90168.0,0.00016636]
[1765153109845,0.0655693,90169.0,90168.0,0.00016636]
[1765153111353,0.0655693,90169.0,90168.0,0.03116636]
[1765153111541,0.0695693,90169.0,90168.0,0.03716636]
[1765153111743,0.0695693,90169.0,90168.0,0.01616638]
[1765153112042,0.0695693,90169.0,90146.0,0.03972847]
[1765153112043,0.0655721,90147.0,90146.0,0.02892]
[1765153112551,0.05448,90144.0,90143.0,0.02905492]
[1765153113444,0.05448,90144.0,90143.0,0.05847492]
[1765153114546,0.05948,90144.0,90143.0,0.05947492]
[1765153114742,0.07348,90144.0,90143.0,0.06247492]
[1765153116943,0.019,90144.0,90143.0,0.06247492]
[1765153118252,0.07348,90144.0,90143.0,0.06247492]
[1765153119254,0.04647,90144.0,90143.0,0.06247492]
[1765153119656,0.019,90144.0,90143.0,0.06247492]
[1765153119947,0.07348,90144.0,90143.0,0.06247492]
[1765153120140,0.0845724,90144.0,90143.0,0.06247492]
[1765153120754,0.07348,90144.0,90143.0,0.06247492]
[1765153126653,0.09094,90144.0,90143.0,0.00413492]
[1765153128270,0.09107492,90144.0,90134.0,0.00016636]
[1765153128456,0.0673235,90135.0,90134.0,0.00016636]
[1765153128650,0.0673245,90127.0,90110.0,0.0110965]
[1765153128856,0.0673245,90127.0,90113.0,0.0110962]
[1765153129359,0.06744467,90127.0,90113.0,0.0110962]
[1765153129753,0.07144467,90127.0,90113.0,0.0110962]
[1765153130460,0.07244467,90127.0,90126.0,0.00427739]
[1765153136969,0.02812,90103.0,90102.0,0.0664575]
[1765153137156,0.05634956,90103.0,90102.0,0.0664575]
[1765153137862,0.05634956,90103.0,90102.0,0.05536]
[1765153138163,0.05808,90095.0,90094.0,0.0690485]
[1765153139169,0.02888,90095.0,90094.0,0.0690485]
[1765153139464,0.06419956,90103.0,90102.0,0.05795]
[1765153139857,0.05819956,90103.0,90102.0,0.05795]
[1765153140665,0.06319956,90103.0,90102.0,0.05795]
[1765153140866,0.06419956,90103.0,90102.0,0.05795]
[1765153142065,0.00611956,90103.0,90102.0,0.05795]
[1765153143274,0.03499956,90103.0,90102.0,0.05795]
[1765153143568,0.05808,90096.0,90095.0,0.05795]
[1765153144262,0.01774,90097.0,90086.0,0.05822751]
[1765153144263,0.0691794,90087.0,90086.0,0.05822751]
[1765153144470,0.06930486,90087.0,90086.0,0.00027751]
[1765153144669,0.06930486,90087.0,90086.0,0.02827751]
[1765153144862,0.05820546,90087.0,90086.0,0.05822751]
[1765153145470,0.00012546,90087.0,90086.0,0.05822751]
[1765153145968,0.00012546,90087.0,90086.0,0.35822751]
[1765153146270,0.00512546,90087.0,90086.0,0.41922751]
[1765153147276,0.06320546,90087.0,90086.0,0.05922751]
[1765153147773,0.03400546,90087.0,90086.0,0.05922751]
[1765153147969,0.00512546,90087.0,90086.0,0.05922751]
[1765153149167,0.00512546,90087.0,90086.0,0.42922751]
[1765153150371,0.00512546,90087.0,90086.0,0.14922751]
[1765153150572,0.00512546,90087.0,90086.0,0.42922751]
[1765153150867,0.069177,90107.0,90106.0,0.05795]
[1765153151174,0.02888,90107.0,90106.0,0.05795]
[1765153152167,0.05808,90107.0,90106.0,0.05795]
[1765153152367,0.05908,90107.0,90106.0,0.05995]
[1765153152568,0.001,90107.0,90106.0,0.05995]
[1765153152775,0.007,90107.0,90106.0,0.05995]
[1765153153675,0.0353,90107.0,90106.0,0.05995]
[1765153154071,0.06473,90107.0,90106.0,0.05995]
[1765153154479,0.06473,90107.0,90106.0,0.002]
[1765153155375,0.06473,90107.0,90086.0,0.02873751]
[1765153155376,0.05773,90087.0,90086.0,0.02873751]
[1765153155581,0.05773,90087.0,90086.0,0.05640751]
[1765153156478,0.05873,90087.0,90086.0,0.05940751]
[1765153157381,0.05873,90087.0,90086.0,0.00327751]
[1765153157879,0.06273,90087.0,90086.0,0.00427751]
[1765153158670,0.06273,90087.0,90073.0,0.00010456]
[1765153158671,0.068831,90074.0,90073.0,0.00010456]
[1765153158872,0.0166,90080.0,90046.0,0.09744944]
[1765153158873,0.05773,90057.0,90056.0,0.02846]
[1765153159078,0.05773,90049.0,90048.0,0.07307]
[1765153159280,0.05773,90049.0,90048.0,0.02846]
[1765153159476,0.05773,90047.0,90046.0,0.00027764]
[1765153159883,0.05783175,90047.0,90046.0,0.00027764]
[1765153160180,0.05783175,90047.0,90046.0,0.05640764]
[1765153160788,0.00010175,90047.0,90046.0,0.43640764]
[1765153161178,0.004,90057.0,90056.0,0.05613]
[1765153161588,0.00016655,90058.0,90056.0,0.05613]
[1765153161589,0.00016655,90058.0,90057.0,0.05613]
[1765153162879,0.00416655,90058.0,90057.0,0.05613]
[1765153164684,0.00516655,90058.0,90057.0,0.05613]
[1765153165085,0.03346655,90058.0,90057.0,0.05613]
[1765153165287,0.00516655,90058.0,90057.0,0.05613]
[1765153166583,0.00516655,90058.0,90057.0,0.47613]
[1765153166777,0.0688312,90074.0,90073.0,0.05613]
[1765153167283,0.05773,90057.0,90056.0,0.0672332]
[1765153168287,0.0688331,90057.0,90056.0,0.05613]
[1765153168477,0.05773,90057.0,90056.0,0.05613]
[1765153168680,0.06273,90057.0,90056.0,0.05613]
[1765153169887,0.06273,90057.0,90056.0,0.0672333]
[1765153173984,0.005,90057.0,90056.0,0.0841733]
[1765153174194,0.005,90057.0,90056.0,0.4741733]
[1765153175487,0.0283,90052.0,90051.0,0.0111039]
[1765153175689,0.05773,90048.0,90047.0,0.05629655]
[1765153176789,0.0111078,90020.0,90016.0,0.03972847]
[1765153176984,0.0111078,90020.0,90019.0,0.05613]
[1765153176985,0.0688378,90020.0,90019.0,0.05613]
[1765153177186,0.05773,90014.0,90013.0,0.0672385]
[1765153177689,0.05773,90014.0,90013.0,0.05613]
[1765153177891,0.0283,90007.0,90003.0,0.0111098]
[1765153178092,0.0283,90007.0,90006.0,0.05640776]
[1765153178296,0.05773,90007.0,90006.0,0.05640776]
[1765153178590,0.05773,90007.0,90006.0,0.02873776]
[1765153178791,0.05773,90007.0,90006.0,0.05640776]
[1765153179983,0.06273,90007.0,90006.0,0.05740776]
[1765153180184,0.06373,90007.0,90006.0,0.00127776]
[1765153180691,0.06373,90007.0,90006.0,0.06851716]
[1765153181084,0.006,90007.0,90006.0,0.06851716]
[1765153184985,0.0343,90007.0,90006.0,0.06851716]
[1765153185190,0.006,90007.0,90006.0,0.06851716]
[1765153190997,0.006,90007.0,90006.0,0.46851716]
[1765153191791,0.006,90007.0,90006.0,0.08851716]
[1765153192297,0.006,90007.0,90006.0,0.38851716]
[1765153192688,0.006,90007.0,90006.0,0.06851716]
[1765153192902,0.06256,90007.0,90006.0,0.06851716]
[1765153193101,0.06256,90007.0,90006.0,0.05740776]
[1765153193605,0.06256,90007.0,90006.0,0.00127776]
[1765153194189,0.06256,90007.0,89996.0,9.47e-05]
[1765153194190,0.0676705,89997.0,89996.0,9.47e-05]
[1765153194701,0.05656,89983.0,89982.0,0.0402323]
[1765153195597,0.05666697,89983.0,89979.0,0.0111127]
[1765153195817,0.05666697,89983.0,89961.0,0.06112945]
[1765153195818,0.05656,89967.0,89966.0,0.05759788]
[1765153195994,0.00010443,89967.0,89966.0,0.05759788]
[1765153196400,0.00010443,89967.0,89966.0,0.43759788]
[1765153196699,0.005,89983.0,89982.0,0.0814524]
[1765153196904,0.006,89983.0,89982.0,0.0814524]
[1765153197205,0.005,89983.0,89982.0,0.0814524]
[1765153197994,0.06161,89983.0,89982.0,0.05732]
[1765153198203,0.06161,89983.0,89973.0,0.01302]
[1765153198204,0.05661,89979.0,89978.0,0.0708528]
[1765153198701,0.05661,89979.0,89978.0,0.05974]
[1765153198910,0.01685,89973.0,89967.0,0.0411042]
[1765153199101,0.05661,89974.0,89967.0,0.0708542]
[1765153199407,0.011114,89970.0,89967.0,0.05974]
[1765153199706,0.067724,89970.0,89966.0,0.06001788]
[1765153200702,0.067724,89970.0,89935.0,0.005]
[1765153200703,0.05661,89936.0,89935.0,0.0758582]
[1765153200904,0.01685,89960.0,89943.0,0.0708572]
[1765153200905,0.02817674,89944.0,89943.0,0.0708572]
[1765153201100,0.05677674,89944.0,89943.0,0.0708572]
[1765153201302,0.00016674,89944.0,89943.0,0.0708572]
[1765153202108,0.00016674,89944.0,89935.0,0.005]
[1765153202109,0.011118,89937.0,89935.0,0.005]
[1765153202415,0.05661,89936.0,89935.0,0.005]
[1765153203500,0.06361,89936.0,89935.0,0.005]
[1765153203703,0.0677292,89927.0,89900.0,0.01638]
[1765153203898,0.0677292,89927.0,89906.0,0.0111217]
[1765153204207,0.05661,89907.0,89906.0,0.0708617]
[1765153204405,0.05661,89907.0,89900.0,0.08584027]
[1765153204406,0.05677684,89915.0,89914.0,0.05974]
[1765153204803,0.02801,89906.0,89905.0,0.0708619]
[1765153205001,0.02801,89906.0,89900.0,0.08584027]
[1765153205002,0.05688643,89915.0,89914.0,0.05974]
[1765153205199,0.05661,89911.0,89910.0,0.0708612]
[1765153205603,0.00027643,89915.0,89914.0,0.05974]
[1765153205805,0.05688643,89915.0,89914.0,0.05974]
[1765153206313,0.00127643,89915.0,89914.0,0.05974]
[1765153207103,0.00127643,89915.0,89914.0,0.42974]
[1765153207306,0.0111181,89936.0,89920.0,0.01511]
[1765153207511,0.0111181,89936.0,89920.0,0.43457027]
[1765153207812,0.0111181,89936.0,89920.0,0.08457027]
[1765153208215,0.0111181,89936.0,89930.0,0.0111188]
[1765153208509,0.02801,89931.0,89930.0,0.0708588]
[1765153209912,0.05761,89936.0,89935.0,0.05974]
[1765153210598,0.001,89936.0,89935.0,0.05974]
[1765153210823,0.00016684,89937.0,89936.0,0.0801181]
[1765153211012,0.05677684,89937.0,89936.0,0.0708581]
[1765153211213,0.00016684,89937.0,89936.0,0.0708581]
[1765153211518,0.05661,89953.0,89952.0,0.05974]
[1765153212111,0.0561,89966.0,89965.0,0.0392245]
[1765153212307,0.08692154,89976.0,89975.0,0.0681233]
[1765153212715,0.0111126,89981.0,89975.0,0.0681233]
[1765153212905,0.00016674,89984.0,89978.0,0.0681228]
[1765153212906,0.02903,89979.0,89978.0,0.0681228]
[1765153213101,0.02903,89979.0,89978.0,0.05701]
[1765153213407,0.02903,89974.0,89973.0,0.0392235]
[1765153213714,0.02903,89974.0,89973.0,0.0681235]
[1765153214312,0.01758,89980.0,89976.0,0.0111131]
[1765153214506,0.02903,89980.0,89979.0,0.05701]
[1765153215003,0.0561,89980.0,89979.0,0.05701]
[1765153215616,0.10768,89980.0,89979.0,0.05701]
[1765153216607,0.11468,89980.0,89979.0,0.05701]
[1765153216810,0.041,89980.0,89979.0,0.05701]
[1765153217006,0.041,89980.0,89979.0,0.47701]
[1765153217220,0.08704027,90010.0,89979.0,0.47701]
[1765153217221,0.0561,90007.0,90006.0,0.05701]
[1765153217718,0.0111082,90017.0,90009.0,0.05701]
[1765153217917,0.0111082,90017.0,89997.0,0.06946027]
[1765153217918,0.0111076,90021.0,90010.0,0.0111089]
[1765153218110,0.0111076,90021.0,90010.0,0.08056917]
[1765153218321,0.0111076,90021.0,90014.0,0.0111084]
[1765153218614,0.02903,90015.0,90014.0,0.05701]
[1765153219610,0.00016664,90025.0,90017.0,0.011108]
[1765153219611,0.025,90021.0,90017.0,0.011108]
[1765153219812,0.025,90021.0,90020.0,0.05701]
[1765153220008,0.028,90021.0,90020.0,0.05701]
[1765153220612,0.025,90021.0,90020.0,0.05701]
[1765153220811,0.027,90021.0,90020.0,0.05701]
[1765153221111,0.002,90021.0,90020.0,0.05701]
[1765153221516,0.00016664,90025.0,90024.0,0.05701]
[1765153223404,0.00016664,90025.0,90024.0,0.07339]
[1765153223808,0.001,90025.0,90024.0,0.44339]
[1765153224020,0.001,90025.0,90024.0,0.0844972]
[1765153224222,0.003,90025.0,90024.0,0.0954972]
[1765153224415,0.003,90025.0,90024.0,0.4554972]
[1765153224716,0.003,90025.0,90024.0,0.5314972]
[1765153224922,0.004,90025.0,90024.0,0.5484972]
[1765153225217,0.00016664,90034.0,90033.0,0.0681161]
[1765153225514,0.00027764,90046.0,90045.0,0.0681146]
[1765153226907,0.00127764,90046.0,90045.0,0.0721146]
[1765153228007,0.00327764,90046.0,90045.0,0.0941146]
[1765153229011,0.00327764,90046.0,90045.0,0.026]
[1765153229012,0.05937764,90046.0,90045.0,0.026]
[1765153229821,0.05937764,90046.0,90045.0,0.05411]
[1765153230017,0.05937764,90046.0,90045.0,0.08301]
[1765153230221,0.05937764,90046.0,90045.0,0.05411]
[1765153232624,0.00327764,90046.0,90045.0,0.08301]
[1765153233015,0.03230764,90046.0,90045.0,0.08301]
[1765153233915,0.05937764,90046.0,90045.0,0.08301]
[1765153235211,0.00327764,90046.0,90045.0,0.08301]
[1765153235617,0.00016664,90055.0,90054.0,0.0681135]
[1765153235825,0.00016664,90055.0,90054.0,0.4381135]
[1765153236022,0.04661,90068.0,90067.0,0.0681119]
[1765153236221,0.0672009,90076.0,90075.0,0.02811]
[1765153236713,0.0672016,90070.0,90069.0,0.05701]
[1765153236918,0.0561,90070.0,90069.0,0.05701]
[1765153237115,0.067201,90075.0,90074.0,0.05701]